Cogmind - Beta 15 @@@ ROGUE MODE // 2025.06.14 @ 20:28:30 Player: ptdel Result: Destroyed self with Rocket Launcher Performance ------------- Evolutions (0) 0 Regions Visited (2) 400 Robots Destroyed (21) 105 Value Destroyed (443) 443 Prototype IDs (0) 0 Alien Tech Used (0) 0 Bonus (-48) -48 TOTAL SCORE: 900 Bonus ------- Friendly Fire -48 Cogmind --------- Core Integrity 0/250 Matter 278/300 Energy 250/250 System Corruption 4% Temperature Cool (0) Movement Rolling (110) Ox2 Location -10/Mines Parts ------- > --- POWER (1) -------- Ion Engine > --- PROPULSION (2) --- Wheel Wheel > --- UTILITY (2) ------ High-capacity Storage Unit Visual Processing Unit > --- WEAPON (2) ------- Rocket Launcher Rocket Launcher > --- INVENTORY (20) --- Ion Engine Ion Engine Light Nuclear Core Compact Wheel Flight Unit Flight Unit Flight Unit Flight Unit Improved Heat Sink Terrain Scanner Weapon Shielding Recalibrator Small Laser Light Assault Rifle Light Assault Rifle Light Assault Rifle Peak State ------------ > --- POWER ------------ Ion Engine > --- PROPULSION ------- Wheel Wheel > --- UTILITY ---------- High-capacity Storage Unit Visual Processing Unit > --- WEAPON ----------- Rocket Launcher Rocket Launcher > --- INVENTORY -------- Ion Engine Ion Engine Light Nuclear Core Compact Wheel Flight Unit Flight Unit Flight Unit Flight Unit Improved Heat Sink Terrain Scanner Weapon Shielding Recalibrator Small Laser Light Assault Rifle Light Assault Rifle Light Assault Rifle [Rating: 12] Favorites ----------- Power Ion Engine Engine Ion Engine Propulsion Light Treads Treads Light Treads Wheel Wheel Utility High-capacity Storage Unit Storage High-capacity Storage Unit Processor Visual Processing Unit Weapon Small Laser Energy Gun Small Laser Ballistic Gun Light Assault Rifle Launcher Rocket Launcher Build | -11 -10 -10 ------- Run | Yrd Mat Min Slots Evolved . | . . . Power . | . . . Propulsion . | . . . Utility . | . . . Weapon . | . . . Parts Attached 15 | 6 7 2 Power 2 | 1 1 . Engine 2 | 1 1 . Core . | . . . Reactor . | . . . Propulsion 4 | 2 2 . Treads 2 | 2 . . Leg . | . . . Wheel 2 | . 2 . Hover . | . . . Flight . | . . . Utility 5 | 1 4 . Device . | . . . Storage 4 | 1 3 . Processor 1 | . 1 . Hackware . | . . . Protection . | . . . Artifact . | . . . Weapon 4 | 2 . 2 Energy Gun 1 | 1 . . Energy Cannon . | . . . Ballistic Gun 1 | 1 . . Ballistic Cannon . | . . . Launcher 2 | . . 2 Special Weapon . | . . . Impact Weapon . | . . . Slashing Weapon . | . . . Piercing Weapon . | . . . Special Melee Weapon . | . . . Unidentified Prototypes . | . . . Parts Lost 3 | . 3 . Power 1 | . 1 . Propulsion 2 | . 2 . Utility . | . . . Weapon . | . . . Highest Loss Streak 2 | . 2 . To Critical Strikes 1 | . 1 . Average Backups 12 | 2 12 16 Power 2 | . 2 3 Propulsion 3 | 1 3 5 Utility 2 | . 2 4 Weapon 3 | 1 3 4 Tool/Special . | . . . Unused Backups 15 | . 1 14 Power 3 | . . 3 Propulsion 5 | . . 5 Utility 4 | . . 4 Weapon 3 | . 1 2 Tool/Special . | . . . Average Slot Usage (%) 94 | . 93 100 Engine 13 | . 13 14 Treads 23 | . 26 . Wheel 4 | . 1 28 Storage 14 | . 14 14 Processor 9 | . 8 14 Energy Gun 13 | . 14 7 Ballistic Gun 13 | . 14 7 Launcher 1 | . . 12 Peak Build Rating 12 | 6 10 12 Average Rating 8 | 4 8 10 On Entrance 5 | . 6 10 Naked Turns . | . . . Heaviest Build 53 | 12 47 53 Greatest Support 40 | 40 40 20 Greatest Overweight (x) 2 | . 2 2 Average Overweight (x) 1 | . . 2 Largest Inventory Capacity 20 | 8 20 20 Average Capacity 18 | 6 19 20 Most Carried 16 | 5 16 16 Average Carried 12 | 2 12 16 Final Capacity 20 | 8 20 20 Final Carried 16 | 4 16 16 Class Distribution -------------------- 100% | Mutant Dominant Class ---------------- Mutant | -10/Materials Mutant | -10/Mines Resources | -11 -10 -10 ----------- Run | Yrd Mat Min Matter Collected 444 | 231 169 44 Remotely . | . . . Salvage Created 619 | . 567 52 Parts 47 | . 43 4 Haulers Intercepted 1 | . 1 . Recyclers Shooed 1 | . 1 . Parts Field Recycled . | . . . Retrieved Matter . | . . . Parts Self-Destructed . | . . . Prevented . | . . . Kills | -11 -10 -10 ------- Run | Yrd Mat Min Combat Hostiles Destroyed 17 | . 15 2 Guns 15 | . 15 . AOE 2 | . . 2 Classes Destroyed 7 | . 5 2 Worker 1 | . 1 . Hauler 1 | . 1 . Recycler 1 | . . 1 Watcher 2 | . 2 . Swarmer 7 | . 6 1 Grunt 9 | . 9 . Assembled 1 | . . 1 Best Kill Streak 4 | . 4 2 Combat Bots Only 3 | . 3 1 Max Kills in Single Turn 2 | . 2 2 Gunslinging . | . . . Exploded 1 | . . 1 Melee . | . . . Uniques/NPCs Destroyed . | . . . Combat | -11 -10 -10 -------- Run | Yrd Mat Min Hostile Shots Fired 97 | . 96 1 Missed 17 | . 16 1 Hits 80 | . 80 . Projectile 80 | . 80 . Critical Strikes 3 | . 3 . Damage Taken 850 | . 826 24 Core 259 | . 235 24 Absorbed by Shields . | . . . Core Remaining (%) 100 | 100 . . Volleys Fired 57 | . 53 4 Largest 2 | . 2 2 Hottest 66 | . 60 66 Shots Fired 113 | . 105 8 Gun 109 | . 105 4 Cannon . | . . . Launcher 4 | . . 4 Special . | . . . Kinetic 56 | . 54 2 Thermal 53 | . 51 2 Explosive 4 | . . 4 Electromagnetic . | . . . Robot Hit Streak 15 | . 15 1 Robot Miss Streak 6 | . 6 3 Penetration Max . | . . . Secondary Targets 1 | . 1 . Max Gunslinging Chain 1 | . 1 . Shots Hit Robots 66 | . 64 2 Core Hits 43 | . 39 4 Critical Kills . | . . . Critical Parts Destroyed . | . . . Critical Strikes . | . . . Melee Attacks . | . . . Impact . | . . . Slashing . | . . . Piercing . | . . . Sneak Attacks . | . . . Combat Hostiles . | . . . Follow-up Attacks . | . . . Damage Inflicted 950 | . 678 272 Guns 691 | . 676 15 Cannons . | . . . Explosions 257 | . . 257 Melee . | . . . Ramming 2 | . 2 . Kinetic 259 | . 244 15 Thermal 432 | . 432 . Explosive 257 | . . 257 Electromagnetic . | . . . Impact . | . . . Slashing . | . . . Piercing . | . . . Highest Corruption 4 | . 4 4 Average Corruption 3 | . 3 4 Corruption Purged . | . . . Corruption Blocked . | . . . Effects 20 | . 17 3 Message Errors 3 | . 2 1 Matter Fused 3 | . 3 . Heat Flow Errors 1 | . 1 . Energy Discharges 4 | . 3 1 Data Loss (minor) 4 | . 4 . Data Loss (major) 2 | . 2 . Misfires 1 | . 1 . Alerts 1 | . . 1 Weapon Failures 1 | . 1 . Overload Shots . | . . . Overflow Damage 12 | . . 12 Projectiles . | . . . Explosions 12 | . . 12 Melee . | . . . Knockbacks . | . . . Impact . | . . . Kinetic . | . . . Secondary . | . . . Self-Inflicted Damage 49 | . . 49 Shots 1 | . . 1 Rammed 1 | . 1 . Targets Rammed 1 | . 1 . Kicked . | . . . Crushed . | . . . Highest Temperature 234 | . 234 20 Average Temperature 53 | . 55 10 Received Heat Transfer 303 | . 303 . Effects 1 | . 1 . Energy Bleed 1 | . 1 . Siege Activations . | . . . Martial Activations . | . . . Shielding Activations . | . . . Robots Disrupted . | . . . Combat Hostiles . | . . . Robots Corrupted . | . . . Combat Hostiles . | . . . Parts Fried . | . . . Impact Corruptions . | . . . Robots Melted . | . . . Combat Hostiles . | . . . Parts Melted . | . . . Heat Transferred 1000 | . 1000 . Parts Sabotaged . | . . . Parts Stolen . | . . . Parts Stripped . | . . . Power Chain Reactions . | . . . Alert | -11 -10 -10 ------- Run | Yrd Mat Min Maximum Alert Level . | . . . Low Security (%) 100 | 100 100 100 Level 1 . | . . . Level 2 . | . . . Level 3 . | . . . Level 4 . | . . . Level 5 . | . . . High Security . | . . . Max Security . | . . . Peak Influence 115 | . 115 41 Initial 41 | . . 41 Average 23 | . 25 15 Influence Increases 492 | . 438 54 Destroy 0b10 Robot/C 320 | . 300 20 Destroy 0b10 Robot/NC 25 | . 20 5 Destroy Leader 86 | . 76 10 Successful Hack 27 | . 27 . Destroy Structure 19 | . . 19 Lose Combat Pursuer 15 | . 15 . Influence Decreases 451 | . 331 120 Entered New Map 66 | . . 66 Time Decay 355 | . 301 54 Lost Part 30 | . 30 . Squads Dispatched 4 | . 4 . Investigation 2 | . 2 . Extermination . | . . . Reinforcement 2 | . 2 . Assault . | . . . Garrison . | . . . Intercept . | . . . Searches Triggered . | . . . Construction Impeded . | . . . Haulers Reinforced . | . . . Active Scanning Responses . | . . . Cargo Convoy Interrupts . | . . . Stealth | -11 -10 -10 --------- Run | Yrd Mat Min Distress Signals 4 | . 4 . Communications Jammed . | . . . Distress Signals . | . . . Times Spotted 34 | . 28 6 Peak Tracking Total 4 | . 4 3 Tactical Retreats 1 | . 1 . Traps | -11 -10 -10 ------- Run | Yrd Mat Min Traps Triggered 3 | . 3 . Indirectly . | . . . Trap Hack Attempts . | . . . Triggered . | . . . Disarmed . | . . . Reprogrammed . | . . . Reused . | . . . Traps Extracted . | . . . Installed . | . . . Triggered . | . . . Machines | -11 -10 -10 ---------- Run | Yrd Mat Min Machines Disabled . | . . . Max in Single Turn . | . . . Machines Repaired . | . . . Machines Dismantled . | . . . Machines Sabotaged . | . . . Overloaded Fab Kills . | . . . Hacking | -11 -10 -10 --------- Run | Yrd Mat Min Machines Accessed 3 | . 3 . Terminals 3 | . 3 . Fabricators . | . . . Repair Stations . | . . . Recycling Units . | . . . Scanalyzers . | . . . Garrison Access . | . . . Total Hacks 11 | . 11 . Successful 6 | . 6 . Failed 5 | . 5 . Catastrophic 2 | . 2 . Database Lockouts . | . . . Manual . | . . . Terminals 11 | . 11 . Fabricators . | . . . Repair Stations . | . . . Recycling Units . | . . . Scanalyzers . | . . . Garrison Access . | . . . Terminal Hacks 6 | . 6 . Record 2 | . 2 . Alert Level 1 | . 1 . Locate Traps 1 | . 1 . Dispatch Records 1 | . 1 . Zone Layout 1 | . 1 . Fabricator Hacks . | . . . Repair Station Hacks . | . . . Recycling Unit Hacks . | . . . Scanalyzer . | . . . Garrison Access Hacks . | . . . Unauthorized Hacks . | . . . Terminals . | . . . Fabricators . | . . . Repair Stations . | . . . Recycling Units . | . . . Scanalyzers . | . . . Garrison Access . | . . . Data Cores Recovered . | . . . Used . | . . . Hacking Detections 3 | . 3 . Full Trace Events 2 | . 2 . Feedback Events . | . . . Feedback Blocked . | . . . Robot Schematics Acquired . | . . . Robots Built . | . . . Authchips . | . . . Time . | . . . Total Robot Build Rating . | . . . Part Schematics Acquired . | . . . Parts Built . | . . . Authchips . | . . . Time . | . . . Total Part Build Rating . | . . . Parts Repaired . | . . . Time . | . . . Parts Recycled . | . . . Recycled Matter . | . . . Retrieved Matter . | . . . Retrieved Components . | . . . Parts Scanalyzed . | . . . Part Schematics Acquired . | . . . Parts Damaged . | . . . Bothacking | -11 -10 -10 ------------ Run | Yrd Mat Min Used RIF Installer . | . . . Robots Hacked . | . . . Non-combat . | . . . Combat . | . . . Robot Hacks Applied . | . . . Relay Couplers Released . | . . . Fabnet Peak Effective % . | . . . Robots Rewired . | . . . Allies Hacked . | . . . Hacks Repelled . | . . . Allies | -11 -10 -10 -------- Run | Yrd Mat Min Total Allies . | . . . Largest Group . | . . . Highest-Rated Group . | . . . Highest-Rated Ally . | . . . Total Orders . | . . . Ally Attacks . | . . . Total Damage . | . . . Kills . | . . . Allies Corrupted . | . . . Allies Melted . | . . . Intel | -11 -10 -10 ------- Run | Yrd Mat Min Active Infowar (turns) 1002 | . 853 149 Optics 1002 | . 853 149 Robot Analysis Total . | . . . Derelict Logs Recovered 1 | . . 1 Drone Launches . | . . . Drone Recoveries . | . . . Exploration | -11 -10 -10 ------------- Run | Yrd Mat Min Turns Passed 1593 | 78 1366 149 Spaces Moved 689 | 47 519 123 Core 11 | 11 . . Treads 512 | 36 476 . Legs . | . . . Wheels 166 | . 43 123 Hover . | . . . Flight . | . . . Fastest Speed 50 | 50 110 110 Average Speed 190 | 134 214 110 Slowest Speed 320 | 160 320 110 Overloaded Moves . | . . . Propulsion Burnouts . | . . . Robots Hopped . | . . . Potential Cave-ins . | . . . Cave-ins Triggered . | . . . Exploration Rate (%) 38 | 5 71 38 Regions Visited 2 Branch Regions 1 Pre-discovered Areas . | . . . Known Exits Taken . | . . . Unknown Exits Taken 2 | 1 1 . Scrap Searched . | . . . Spaces Dug . | . . . Terrain Destroyed 23 | . . 23 Melee . | . . . Projectile . | . . . AOE 23 | . . 23 Terrain Rammed . | . . . Walls Destroyed . | . . . Machines Disabled . | . . . Actions | -11 -10 -10 --------- Run | Yrd Mat Min Total 868 | 62 675 131 Wait 74 | . 72 2 Move 687 | 46 518 123 Hop . | . . . Pick Up 30 | 10 20 . Fast Attach . | . . . Attach 11 | 6 5 . Detach . | . . . Swap 4 | . 2 2 Drop 4 | . 4 . Fire 57 | . 53 4 Melee . | . . . Ram . | . . . Kick . | . . . Crush 1 | . 1 . Escape Stasis . | . . . Rewire . | . . . Trap . | . . . Miscellaneous . | . . . Route ------- -11/Scrapyard -10/Materials (discovered 3 exits: [*Mat] / [*Min x2]) -10/Mines History --------- Turn | Location | Event 7 | -11/Scrapyard | Discovered new exit (range 14) 79 | -11/Scrapyard | Entered Materials 222 | -10/Materials | Discovered new exit (range 15) 307 | -10/Materials | Build established: Mutant 467 | -10/Materials | Discovered new exit (range 12) 960 | -10/Materials | Core integrity fell below 50% 1158 | -10/Materials | Discovered new exit (range 12) 1370 | -10/Materials | Core integrity fell below 20% 1445 | -10/Materials | Entered Mines 1455 | -10/Mines | Met a Derelict bent on vengeance 1463 | -10/Mines | Assembled infested the area 1465 | -10/Mines | Learned 2 Materials zone layouts 1468 | -10/Mines | Assisted by a Guerilla fighting off Assembled 1594 | -10/Mines | Destroyed self with Rocket Launcher Last Messages --------------- 01544_ The unstable cave ceiling collapses. 01544_ U-05 Engineer builds a Wall. 01548_ R-06 Scavenger destroyed. 01548_ as-57743 destroyed. 01549_ U-05 Engineer lays Concrete. 01552_ U-05 Engineer builds a Wall. 01553_ U-05 Engineer lays Concrete. 01557_ U-05 Engineer builds a Wall. 01558_ U-05 Engineer lays Concrete. 01561_ U-05 Engineer builds a Wall. 01562_ U-05 Engineer lays Concrete. 01562_ Acquired 1 matter. 01563_ U-05 Engineer lays Concrete. 01564_ Acquired 2 matter. 01564_ U-05 Engineer builds a Wall. 01565_ U-05 Engineer lays Concrete. 01578_ Acquired 41 matter. 01592_ HV Slug penetrates Wall. 01594_ Destroyed Flight Unit. 01594_ S-10 Pest destroyed. Map ----- +----------------------------------------------------+ | ??# ############# ## ##????? | | ??## ##???????????# ### % * ####?? | | ???#####????????????# #?## % ? | | ????????????????????# #??# #???????? | | ???????????????????? ??# #???????? | | ???????????????????? #?#### ###???????? | | ???????????????????? ##????## #????????? | | ???????????????????? #??????## # #????????? | | ???????????????????? #??????# # #????????? | | ???????????????????? ??????# # ###???????? | | ???????????????????# ??????# ## #???????? | | ???????????????????## #??????# # ##???????? | | ?????????????????????###??????# # ##????????? | | ??????????????????????????????## # %####?????????? | | ???????????????????????????????### # #??????????? | | ?????????????????????????????????# #??????????? | | ?????????????????????????????????# ###??????????? | | ?????????????????????????????????# ##??????????? | | ????????????????????????????????## #??????????? | | ????????????????????????????????# #??????????? | | ????????????????????????????????# #??????????? | | ????????????????????????????##??##" #####??????? | | ??????????X????#??????????##;##?##%" #??????? | | ??????????? # ??????## ### ## #??????? | | ???????? ### r ### #?????????? | | ???????? @ ###?????????? | | ???????? ##???????????? | | ???????? ## # #### #????????????? | | ?????????????????## s ?????## #??????????? | | ??????????????????# h ???????# ???????? | | ??????????????????## %????????## %????? | | ??????????????????# #??????????# ######????? | | ??????????????????##??????????? #?????????? | | ??????????????????????????????? #????????? | | ??????????????????????????????? # #???????? | | ?????????????????????????????? ## ??????? | | ??????????????????????????????## #?# ####?????? | | ???????????????????????????????# #??####????????? | | ???????????????????????????????# $??????????????? | | ????????????????????????????????###??????????????? | | ?????????????????????????????????????????????????? | | ?????????????????????????????????????????????????? | | ?????????????????????????????????????????????????? | | ?????????????????????????????????????????????????? | | ?????????????????????????????????????????????????? | | ?????????????????????????????????????????????????? | | ?????????????????????????????????????????????????? | | ?????????????????????????????????????????????????? | | ?????????????????????????????????????????????????? | | ?????????????????????????????????????????????????? | +----------------------------------------------------+ Best States ------------- Heat Dissipation 25 Energy Generation 10 Energy Capacity 250 Matter Stores 300 Matter Capacity 300 Sight Range 18 Terrain Scan Density 10 Evasion (%) 50 Recoil Reduction 2 Item Schematics ----------------- None Robot Schematics ------------------ None Fabricated ------------ Nothing Repaired ---------- Nothing Alien Tech Used ----------------- None Achievements -------------- None Challenges ------------ None Game ------ Seed SuperdenseCoolantHammer Manual? 0 Play Time 00:20:51 Cumulative 81.4 hours Start 2025.06.14 @ 19:52:54 End 2025.06.14 @ 20:28:30 Sessions 1 Manual Loads 0 Difficulty Rogue Special Mode None Game No. 103 Rogue 87 Adventurer 15 Explorer 1 Win Type - Total 0 Types 0/0/0/0/0/0/0/0/0/0 Lore% 15 Gallery% 34 Achievement% 39 Wizard Run 0 Options --------- Layout 1 ASCII 0 Keyboard 0 Movement Arrows Keybinds 0 Fullscreen 1 Font 16/SmallcapsGlow Map View 50x35 Zoom Use 0% Tactical HUD 1 Map Filters NONE Filters NONE Steam SD RUN: 81c40e31-d66a-4d4a-a992-b7d6637f2d75